[Event "Titled Tuesday Blitz July 26 Late 2022"]
[White "Tanenbaum, Zachary"]
[Black "Yoo, Christopher Woojin"]
[WhiteFideId "2060850"]
[BlackFideId "30909694"]
[WhiteElo "2175"]
[BlackElo "2105"]
[Result "0-1"]
[Round "05"]
[TimeControl "180+1"]
[Date "2022.07.26"]
[WhiteClock "0:00:07"]
[BlackClock "0:00:35"]

1. e4 {[%clk 0:03:00]}  c5 {[%clk 0:02:58]} 2. Nf3 {[%clk 0:03:00]}  e6 {[%clk 0:02:58]} 3. d4 {[%clk 0:03:01]}  cxd4 {[%clk 0:02:59]} 4. Nxd4 {[%clk 0:03:01]}  Nf6 {[%clk 0:02:59]} 5. Nc3 {[%clk 0:03:02]}  Nc6 {[%clk 0:03:00]} 6. Bf4 {[%clk 0:03:01]}  Bc5 {[%clk 0:02:49]} 7. Ndb5 {[%clk 0:02:58]}  O-O {[%clk 0:02:49]} 8. Bd6 {[%clk 0:02:50]}  Bxd6 {[%clk 0:02:47]} 9. Nxd6 {[%clk 0:02:51]}  Ne8 {[%clk 0:02:10]} 10. Nxe8 {[%clk 0:02:47]}  Rxe8 {[%clk 0:02:04]} 11. Qd6 {[%clk 0:02:05]}  a6 {[%clk 0:02:02]} 12. Be2 {[%clk 0:01:48]}  b5 {[%clk 0:02:01]} 13. O-O {[%clk 0:01:42]}  Bb7 {[%clk 0:01:25]} 14. Rad1 {[%clk 0:01:38]}  Rc8 {[%clk 0:01:08]} 15. Qxd7 {[%clk 0:01:26]}  Qb6 {[%clk 0:01:07]} 16. Qd6 {[%clk 0:01:24]}  Red8 {[%clk 0:01:07]} 17. Qg3 {[%clk 0:01:18]}  Nd4 {[%clk 0:00:53]} 18. Qe3 {[%clk 0:00:51]}  b4 {[%clk 0:00:52]} 19. Na4 {[%clk 0:00:47]}  Nxe2+ {[%clk 0:00:52]} 20. Qxe2 {[%clk 0:00:47]}  Qc6 {[%clk 0:00:48]} 21. b3 {[%clk 0:00:44]}  Qxe4 {[%clk 0:00:41]} 22. Qxe4 {[%clk 0:00:42]}  Bxe4 {[%clk 0:00:42]} 23. c4 {[%clk 0:00:35]}  bxc3 {[%clk 0:00:40]} 24. Nxc3 {[%clk 0:00:35]}  Bd3 {[%clk 0:00:39]} 25. Rfe1 {[%clk 0:00:10]}  Rxc3 {[%clk 0:00:38]} 26. Rd2 {[%clk 0:00:07]}  Rc2 {[%clk 0:00:35]} 27. Red1 {[%clk 0:00:06]}  Rxd2 {[%clk 0:00:35]} 28. Rxd2 {[%clk 0:00:07]}  Kf8 {[%clk 0:00:35]} 29. f3 {[%clk 0:00:07]}  Ke7 {[%clk 0:00:36]} 30. Kf2 {[%clk 0:00:08]}  Bb1 {[%clk 0:00:34]} 31. Rb2 {[%clk 0:00:08]}  Bg6 {[%clk 0:00:34]} 32. b4 {[%clk 0:00:08]}  Rc8 {[%clk 0:00:34]} 33. a4 {[%clk 0:00:07]}  Rc2+ {[%clk 0:00:34]} 34. Rxc2 {[%clk 0:00:08]}  Bxc2 {[%clk 0:00:35]} 35. b5 {[%clk 0:00:07]}  a5 {[%clk 0:00:35]} 0-1


[Site "https://www.chess.com"]

[Event "Titled Tuesday Blitz July 26 Late 2022"]
[White "Toncheva, Nadya"]
[Black "Leitao, Rafael"]
[WhiteFideId "2924056"]
[BlackFideId "2101246"]
[WhiteElo "1888"]
[BlackElo "2609"]
[Result "0-1"]
[Round "05"]
[TimeControl "180+1"]
[Date "2022.07.26"]
[WhiteClock "0:00:01"]
[BlackClock "0:00:19"]

1. d4 {[%clk 0:03:00]}  Nf6 {[%clk 0:02:59]} 2. c4 {[%clk 0:03:00]}  e6 {[%clk 0:02:58]} 3. Nc3 {[%clk 0:03:00]}  Bb4 {[%clk 0:02:57]} 4. e3 {[%clk 0:03:00]}  O-O {[%clk 0:02:56]} 5. Bd3 {[%clk 0:03:00]}  d5 {[%clk 0:02:56]} 6. cxd5 {[%clk 0:03:00]}  exd5 {[%clk 0:02:56]} 7. Ne2 {[%clk 0:03:00]}  Re8 {[%clk 0:02:54]} 8. O-O {[%clk 0:03:00]}  Bd6 {[%clk 0:02:44]} 9. Bd2 {[%clk 0:02:59]}  b6 {[%clk 0:02:33]} 10. Nf4 {[%clk 0:02:58]}  Bb7 {[%clk 0:02:30]} 11. Rc1 {[%clk 0:02:48]}  c5 {[%clk 0:02:25]} 12. Qf3 {[%clk 0:02:40]}  Ne4 {[%clk 0:02:15]} 13. Rfd1 {[%clk 0:02:19]}  cxd4 {[%clk 0:01:53]} 14. exd4 {[%clk 0:02:19]}  Nxd2 {[%clk 0:01:47]} 15. Rxd2 {[%clk 0:02:18]}  Qg5 {[%clk 0:01:45]} 16. Re2 {[%clk 0:02:04]}  Nc6 {[%clk 0:01:38]} 17. Rce1 {[%clk 0:01:43]}  Rxe2 {[%clk 0:01:38]} 18. Nfxe2 {[%clk 0:01:29]}  Re8 {[%clk 0:01:33]} 19. Rd1 {[%clk 0:01:17]}  Rd8 {[%clk 0:01:18]} 20. h3 {[%clk 0:01:09]}  g6 {[%clk 0:01:16]} 21. Qg4 {[%clk 0:00:49]}  Qxg4 {[%clk 0:01:13]} 22. hxg4 {[%clk 0:00:50]}  Be7 {[%clk 0:01:10]} 23. Bb5 {[%clk 0:00:45]}  a6 {[%clk 0:01:03]} 24. Ba4 {[%clk 0:00:42]}  Bf6 {[%clk 0:01:00]} 25. Bb3 {[%clk 0:00:39]}  Na5 {[%clk 0:00:58]} 26. Nf4 {[%clk 0:00:25]}  Nxb3 {[%clk 0:00:50]} 27. axb3 {[%clk 0:00:26]}  Bc6 {[%clk 0:00:48]} 28. Kf1 {[%clk 0:00:25]}  Kg7 {[%clk 0:00:44]} 29. Ke2 {[%clk 0:00:24]}  a5 {[%clk 0:00:43]} 30. Kd3 {[%clk 0:00:23]}  b5 {[%clk 0:00:37]} 31. Ra1 {[%clk 0:00:21]}  b4 {[%clk 0:00:38]} 32. Nd1 {[%clk 0:00:18]}  Bb5+ {[%clk 0:00:38]} 33. Kd2 {[%clk 0:00:12]}  Bxd4 {[%clk 0:00:36]} 34. Rxa5 {[%clk 0:00:11]}  Bc6 {[%clk 0:00:36]} 35. Ra6 {[%clk 0:00:10]}  Bb7 {[%clk 0:00:36]} 36. Ra5 {[%clk 0:00:08]}  Bf6 {[%clk 0:00:30]} 37. Rb5 {[%clk 0:00:06]}  Bc6 {[%clk 0:00:21]} 38. Rxb4 {[%clk 0:00:06]}  d4 {[%clk 0:00:20]} 39. g3 {[%clk 0:00:05]}  Bf3 {[%clk 0:00:20]} 40. Nd3 {[%clk 0:00:04]}  Bxg4 {[%clk 0:00:19]} 41. Rb7 {[%clk 0:00:02]}  Bf3 {[%clk 0:00:19]} 42. Ke1 {[%clk 0:00:01]}  Bxb7 {[%clk 0:00:19]} 0-1


[Site "https://www.chess.com"]

[Event "Titled Tuesday Blitz July 26 Late 2022"]
[White "Ulasevich, Sergei"]
[Black "Kozin, Yuri"]
[WhiteFideId "13505629"]
[BlackFideId "4129920"]
[WhiteElo "2151"]
[BlackElo "2528"]
[Result "0-1"]
[Round "05"]
[TimeControl "180+1"]
[Date "2022.07.27"]
[WhiteClock "0:00:01"]
[BlackClock "0:00:05"]

1. d4 {[%clk 0:03:00]}  d5 {[%clk 0:02:57]} 2. Bf4 {[%clk 0:03:01]}  Nf6 {[%clk 0:02:57]} 3. Nc3 {[%clk 0:03:01]}  e6 {[%clk 0:02:57]} 4. Nb5 {[%clk 0:02:59]}  Bd6 {[%clk 0:02:58]} 5. Nxd6+ {[%clk 0:02:56]}  cxd6 {[%clk 0:02:59]} 6. h3 {[%clk 0:02:55]}  O-O {[%clk 0:02:59]} 7. Nf3 {[%clk 0:02:54]}  Nc6 {[%clk 0:03:00]} 8. e3 {[%clk 0:02:53]}  Re8 {[%clk 0:03:00]} 9. Be2 {[%clk 0:02:50]}  e5 {[%clk 0:03:00]} 10. Bh2 {[%clk 0:02:46]}  Bf5 {[%clk 0:02:55]} 11. O-O {[%clk 0:02:45]}  h6 {[%clk 0:02:53]} 12. c3 {[%clk 0:02:45]}  a6 {[%clk 0:02:39]} 13. a4 {[%clk 0:02:42]}  Qb6 {[%clk 0:02:34]} 14. Ra2 {[%clk 0:02:17]}  Rac8 {[%clk 0:02:17]} 15. Ne1 {[%clk 0:02:10]}  Na5 {[%clk 0:01:56]} 16. Bd3 {[%clk 0:02:08]}  Bxd3 {[%clk 0:01:52]} 17. Nxd3 {[%clk 0:02:09]}  e4 {[%clk 0:01:50]} 18. Nb4 {[%clk 0:01:44]}  Nc4 {[%clk 0:01:45]} 19. Qc1 {[%clk 0:01:36]}  a5 {[%clk 0:01:37]} 20. Nc2 {[%clk 0:01:36]}  Qb3 {[%clk 0:01:25]} 21. Ra3 {[%clk 0:01:28]}  Nxa3 {[%clk 0:01:22]} 22. Nxa3 {[%clk 0:01:29]}  Qxa4 {[%clk 0:01:12]} 23. Bxd6 {[%clk 0:01:30]}  b5 {[%clk 0:01:11]} 24. Nb1 {[%clk 0:01:15]}  Rc6 {[%clk 0:01:07]} 25. Bg3 {[%clk 0:01:11]}  b4 {[%clk 0:01:04]} 26. Bh4 {[%clk 0:01:10]}  Rec8 {[%clk 0:01:00]} 27. f3 {[%clk 0:01:05]}  Qb5 {[%clk 0:00:55]} 28. Bxf6 {[%clk 0:00:59]}  Rxf6 {[%clk 0:00:54]} 29. fxe4 {[%clk 0:00:59]}  Rxf1+ {[%clk 0:00:52]} 30. Qxf1 {[%clk 0:01:00]}  Qxf1+ {[%clk 0:00:53]} 31. Kxf1 {[%clk 0:01:01]}  dxe4 {[%clk 0:00:52]} 32. Ke2 {[%clk 0:00:58]}  a4 {[%clk 0:00:52]} 33. Kd2 {[%clk 0:00:56]}  bxc3+ {[%clk 0:00:31]} 34. Nxc3 {[%clk 0:00:57]}  Rb8 {[%clk 0:00:28]} 35. Kc2 {[%clk 0:00:54]}  Rc8 {[%clk 0:00:24]} 36. Kd2 {[%clk 0:00:51]}  a3 {[%clk 0:00:20]} 37. bxa3 {[%clk 0:00:50]}  f5 {[%clk 0:00:21]} 38. a4 {[%clk 0:00:47]}  Kf7 {[%clk 0:00:21]} 39. Nd5 {[%clk 0:00:34]}  Ra8 {[%clk 0:00:16]} 40. Nc3 {[%clk 0:00:29]}  Ke6 {[%clk 0:00:14]} 41. Kc2 {[%clk 0:00:26]}  Rb8 {[%clk 0:00:13]} 42. Nb5 {[%clk 0:00:25]}  Kd5 {[%clk 0:00:11]} 43. Kc3 {[%clk 0:00:24]}  Rc8+ {[%clk 0:00:09]} 44. Kb3 {[%clk 0:00:23]}  Rc1 {[%clk 0:00:09]} 45. a5 {[%clk 0:00:23]}  Ra1 {[%clk 0:00:08]} 46. a6 {[%clk 0:00:19]}  f4 {[%clk 0:00:07]} 47. exf4 {[%clk 0:00:16]}  e3 {[%clk 0:00:07]} 48. Kb2 {[%clk 0:00:16]}  Ra5 {[%clk 0:00:06]} 49. Nc7+ {[%clk 0:00:10]}  Kxd4 {[%clk 0:00:06]} 50. a7 {[%clk 0:00:08]}  e2 {[%clk 0:00:04]} 51. Ne6+ {[%clk 0:00:06]}  Ke3 {[%clk 0:00:03]} 52. Nc5 {[%clk 0:00:03]}  Rxa7 {[%clk 0:00:02]} 53. Nd3 {[%clk 0:00:01]}  Kxd3 {[%clk 0:00:03]} 54. Kb3 {[%clk 0:00:01]}  e1=Q {[%clk 0:00:03]} 55. Kb2 {[%clk 0:00:01]}  Qc3+ {[%clk 0:00:04]} 56. Kb1 {[%clk 0:00:01]}  Ra1# {[%clk 0:00:05]} 0-1


[Site "https://www.chess.com"]

[Event "Titled Tuesday Blitz July 26 Late 2022"]
[White "Urbina Perez, Juan Antonio"]
[Black "Havanecz, Bianka"]
[WhiteFideId "2217368"]
[BlackFideId "704814"]
[WhiteElo "2192"]
[BlackElo "2294"]
[Result "1/2-1/2"]
[Round "05"]
[TimeControl "180+1"]
[Date "2022.07.27"]
[WhiteClock "0:00:22"]
[BlackClock "0:00:03"]

1. e4 {[%clk 0:03:00]}  c6 {[%clk 0:02:59]} 2. d4 {[%clk 0:02:56]}  d5 {[%clk 0:02:59]} 3. e5 {[%clk 0:02:56]}  c5 {[%clk 0:02:59]} 4. dxc5 {[%clk 0:02:56]}  Nc6 {[%clk 0:03:00]} 5. f4 {[%clk 0:02:56]}  Nh6 {[%clk 0:02:56]} 6. Be2 {[%clk 0:02:52]}  g6 {[%clk 0:02:56]} 7. Nf3 {[%clk 0:02:49]}  Bg7 {[%clk 0:02:54]} 8. Be3 {[%clk 0:02:49]}  O-O {[%clk 0:02:52]} 9. O-O {[%clk 0:02:48]}  Bg4 {[%clk 0:02:51]} 10. Nd4 {[%clk 0:02:39]}  Bxe2 {[%clk 0:02:49]} 11. Qxe2 {[%clk 0:02:40]}  e6 {[%clk 0:02:48]} 12. c3 {[%clk 0:02:36]}  Nf5 {[%clk 0:02:44]} 13. Nd2 {[%clk 0:02:30]}  Nxe3 {[%clk 0:02:42]} 14. Qxe3 {[%clk 0:02:31]}  a5 {[%clk 0:02:36]} 15. Nxc6 {[%clk 0:02:25]}  bxc6 {[%clk 0:02:36]} 16. Nf3 {[%clk 0:02:25]}  Qc7 {[%clk 0:02:33]} 17. b4 {[%clk 0:02:17]}  axb4 {[%clk 0:02:31]} 18. cxb4 {[%clk 0:02:18]}  Ra4 {[%clk 0:02:26]} 19. Qb3 {[%clk 0:02:12]}  Rfa8 {[%clk 0:02:25]} 20. a3 {[%clk 0:02:12]}  f6 {[%clk 0:02:08]} 21. Rfe1 {[%clk 0:02:09]}  fxe5 {[%clk 0:02:04]} 22. fxe5 {[%clk 0:02:10]}  Qa7 {[%clk 0:01:54]} 23. Nd4 {[%clk 0:01:59]}  Qd7 {[%clk 0:01:46]} 24. h3 {[%clk 0:01:44]}  Bh6 {[%clk 0:01:28]} 25. Ra2 {[%clk 0:01:43]}  Bg5 {[%clk 0:01:20]} 26. Ree2 {[%clk 0:01:42]}  R8a6 {[%clk 0:01:07]} 27. Qf3 {[%clk 0:01:36]}  Ra8 {[%clk 0:01:02]} 28. Qg4 {[%clk 0:01:35]}  Be7 {[%clk 0:00:54]} 29. Qxe6+ {[%clk 0:01:27]}  Qxe6 {[%clk 0:00:54]} 30. Nxe6 {[%clk 0:01:27]}  Rxa3 {[%clk 0:00:54]} 31. Rxa3 {[%clk 0:01:28]}  Rxa3 {[%clk 0:00:55]} 32. Nd4 {[%clk 0:01:28]}  Ra6 {[%clk 0:00:52]} 33. Rc2 {[%clk 0:01:21]}  Bd8 {[%clk 0:00:42]} 34. e6 {[%clk 0:01:14]}  Bf6 {[%clk 0:00:34]} 35. Nxc6 {[%clk 0:01:04]}  Rxc6 {[%clk 0:00:34]} 36. Kf1 {[%clk 0:01:02]}  Bd4 {[%clk 0:00:22]} 37. Ke2 {[%clk 0:01:00]}  Rxe6+ {[%clk 0:00:20]} 38. Kd3 {[%clk 0:01:00]}  Bg1 {[%clk 0:00:19]} 39. c6 {[%clk 0:01:00]}  Re8 {[%clk 0:00:16]} 40. b5 {[%clk 0:00:56]}  Rc8 {[%clk 0:00:15]} 41. Ra2 {[%clk 0:00:53]}  Kf7 {[%clk 0:00:14]} 42. Ra1 {[%clk 0:00:51]}  Bc5 {[%clk 0:00:12]} 43. Rc1 {[%clk 0:00:50]}  Bb6 {[%clk 0:00:11]} 44. Re1 {[%clk 0:00:46]}  Kf6 {[%clk 0:00:09]} 45. g4 {[%clk 0:00:43]}  h5 {[%clk 0:00:06]} 46. gxh5 {[%clk 0:00:43]}  gxh5 {[%clk 0:00:07]} 47. h4 {[%clk 0:00:43]}  Ra8 {[%clk 0:00:04]} 48. Rf1+ {[%clk 0:00:42]}  Ke6 {[%clk 0:00:04]} 49. Re1+ {[%clk 0:00:39]}  Kd6 {[%clk 0:00:05]} 50. Rf1 {[%clk 0:00:40]}  Kc5 {[%clk 0:00:05]} 51. Rf5 {[%clk 0:00:39]}  Ra3+ {[%clk 0:00:04]} 52. Kc2 {[%clk 0:00:39]}  Rh3 {[%clk 0:00:04]} 53. Rxh5 {[%clk 0:00:38]}  Kxb5 {[%clk 0:00:04]} 54. Rxd5+ {[%clk 0:00:38]}  Kxc6 {[%clk 0:00:05]} 55. Rh5 {[%clk 0:00:36]}  Bf2 {[%clk 0:00:04]} 56. Rh6+ {[%clk 0:00:36]}  Kd5 {[%clk 0:00:04]} 57. Rf6 {[%clk 0:00:37]}  Bxh4 {[%clk 0:00:04]} 58. Rf4 {[%clk 0:00:37]}  Rh2+ {[%clk 0:00:04]} 59. Kb3 {[%clk 0:00:36]}  Be7 {[%clk 0:00:04]} 60. Rf5+ {[%clk 0:00:36]}  Ke6 {[%clk 0:00:04]} 61. Rf1 {[%clk 0:00:36]}  Bd6 {[%clk 0:00:04]} 62. Re1+ {[%clk 0:00:37]}  Be5 {[%clk 0:00:05]} 63. Kc4 {[%clk 0:00:36]}  Rc2+ {[%clk 0:00:05]} 64. Kd3 {[%clk 0:00:35]}  Rb2 {[%clk 0:00:05]} 65. Rh1 {[%clk 0:00:34]}  Kd5 {[%clk 0:00:05]} 66. Rh7 {[%clk 0:00:32]}  Rb3+ {[%clk 0:00:06]} 67. Kc2 {[%clk 0:00:32]}  Rg3 {[%clk 0:00:06]} 68. Rd7+ {[%clk 0:00:31]}  Kc4 {[%clk 0:00:06]} 69. Re7 {[%clk 0:00:30]}  Rg2+ {[%clk 0:00:06]} 70. Kd1 {[%clk 0:00:30]}  Bd4 {[%clk 0:00:06]} 71. Ke1 {[%clk 0:00:29]}  Kd3 {[%clk 0:00:06]} 72. Rf7 {[%clk 0:00:26]}  Rg1+ {[%clk 0:00:03]} 73. Rf1 {[%clk 0:00:25]}  Rg2 {[%clk 0:00:03]} 74. Rf3+ {[%clk 0:00:24]}  Be3 {[%clk 0:00:04]} 75. Rf5 {[%clk 0:00:22]}  Rg1+ {[%clk 0:00:02]} 76. Rf1 {[%clk 0:00:22]}  Bd2+ {[%clk 0:00:02]} 77. Kf2 {[%clk 0:00:22]}  Rxf1+ {[%clk 0:00:03]} 78. Kxf1 {[%clk 0:00:22]} 1/2-1/2


[Site "https://www.chess.com"]

[Event "Titled Tuesday Blitz July 26 Late 2022"]
[White "Vivekananthan, Anish"]
[Black "Chen, Justin"]
[WhiteFideId "2090775"]
[BlackFideId "2098199"]
[WhiteElo "2772"]
[BlackElo "2289"]
[Result "1-0"]
[Round "05"]
[TimeControl "180+1"]
[Date "2022.07.26"]
[WhiteClock "0:00:31"]
[BlackClock "0:00:02"]

1. d4 {[%clk 0:03:00]}  d5 {[%clk 0:02:58]} 2. c4 {[%clk 0:03:00]}  e6 {[%clk 0:02:59]} 3. Nf3 {[%clk 0:03:00]}  Nf6 {[%clk 0:02:58]} 4. Nc3 {[%clk 0:03:01]}  Be7 {[%clk 0:02:58]} 5. Bf4 {[%clk 0:03:01]}  O-O {[%clk 0:02:58]} 6. e3 {[%clk 0:03:01]}  b6 {[%clk 0:02:58]} 7. Bd3 {[%clk 0:02:55]}  Ba6 {[%clk 0:02:57]} 8. cxd5 {[%clk 0:02:54]}  Nxd5 {[%clk 0:02:43]} 9. Nxd5 {[%clk 0:02:50]}  Qxd5 {[%clk 0:02:43]} 10. O-O {[%clk 0:02:40]}  c5 {[%clk 0:02:27]} 11. Bxa6 {[%clk 0:02:35]}  Nxa6 {[%clk 0:02:28]} 12. Qa4 {[%clk 0:02:25]}  Qb7 {[%clk 0:02:23]} 13. Rfd1 {[%clk 0:02:21]}  Rfd8 {[%clk 0:02:20]} 14. Rac1 {[%clk 0:02:10]}  Rac8 {[%clk 0:02:07]} 15. h3 {[%clk 0:02:05]}  h6 {[%clk 0:02:05]} 16. a3 {[%clk 0:01:57]}  cxd4 {[%clk 0:01:56]} 17. Nxd4 {[%clk 0:01:56]}  Nc5 {[%clk 0:01:55]} 18. Qb5 {[%clk 0:01:53]}  a6 {[%clk 0:01:46]} 19. Qe2 {[%clk 0:01:50]}  Bf6 {[%clk 0:01:41]} 20. Nf3 {[%clk 0:01:36]}  Nb3 {[%clk 0:01:19]} 21. Rxc8 {[%clk 0:01:33]}  Rxc8 {[%clk 0:01:00]} 22. Be5 {[%clk 0:01:28]}  Be7 {[%clk 0:00:46]} 23. Bc3 {[%clk 0:01:19]}  Nc5 {[%clk 0:00:43]} 24. Ne5 {[%clk 0:01:17]}  Bf6 {[%clk 0:00:42]} 25. Nc4 {[%clk 0:01:12]}  Rd8 {[%clk 0:00:30]} 26. Rxd8+ {[%clk 0:01:02]}  Bxd8 {[%clk 0:00:30]} 27. Qg4 {[%clk 0:01:02]}  f5 {[%clk 0:00:15]} 28. Qd4 {[%clk 0:00:57]}  Bf6 {[%clk 0:00:15]} 29. Qd6 {[%clk 0:00:57]}  Bxc3 {[%clk 0:00:10]} 30. bxc3 {[%clk 0:00:58]}  Qe4 {[%clk 0:00:02]} 31. Nxb6 {[%clk 0:00:55]}  Nd3 {[%clk 0:00:01]} 32. Nd7 {[%clk 0:00:53]}  f4 {[%clk 0:00:01]} 33. Qf8+ {[%clk 0:00:47]}  Kh7 {[%clk 0:00:01]} 34. Qf7 {[%clk 0:00:47]}  Qf5 {[%clk 0:00:01]} 35. Nf8+ {[%clk 0:00:46]}  Kh8 {[%clk 0:00:02]} 36. Ng6+ {[%clk 0:00:33]}  Kh7 {[%clk 0:00:02]} 37. Qxf5 {[%clk 0:00:33]}  exf5 {[%clk 0:00:03]} 38. Nxf4 {[%clk 0:00:34]}  Ne5 {[%clk 0:00:03]} 39. Nd5 {[%clk 0:00:32]}  Nc4 {[%clk 0:00:02]} 40. a4 {[%clk 0:00:32]}  a5 {[%clk 0:00:02]} 41. Ne7 {[%clk 0:00:30]}  Nb2 {[%clk 0:00:01]} 42. Nc6 {[%clk 0:00:30]}  Nxa4 {[%clk 0:00:02]} 43. c4 {[%clk 0:00:31]} 1-0


[Site "https://www.chess.com"]

[Event "Titled Tuesday Blitz July 26 Late 2022"]
[White "Voege, Tobias"]
[Black "Wu, Rochelle"]
[WhiteFideId "1270513"]
[BlackFideId "30908132"]
[WhiteElo "2379"]
[BlackElo "2168"]
[Result "0-1"]
[Round "05"]
[TimeControl "180+1"]
[Date "2022.07.27"]
[WhiteClock "0:00:01"]
[BlackClock "0:00:16"]

1. e4 {[%clk 0:03:00]}  c5 {[%clk 0:02:41]} 2. Nf3 {[%clk 0:02:59]}  g6 {[%clk 0:02:40]} 3. d4 {[%clk 0:02:58]}  cxd4 {[%clk 0:02:40]} 4. c3 {[%clk 0:02:59]}  dxc3 {[%clk 0:02:40]} 5. Nxc3 {[%clk 0:02:59]}  Bg7 {[%clk 0:02:41]} 6. Bc4 {[%clk 0:03:00]}  Nc6 {[%clk 0:02:39]} 7. O-O {[%clk 0:02:59]}  d6 {[%clk 0:02:39]} 8. Qe2 {[%clk 0:02:53]}  Nf6 {[%clk 0:02:38]} 9. Rd1 {[%clk 0:02:39]}  Qa5 {[%clk 0:02:37]} 10. Bg5 {[%clk 0:02:03]}  O-O {[%clk 0:02:30]} 11. Nd5 {[%clk 0:01:53]}  Bg4 {[%clk 0:02:05]} 12. b4 {[%clk 0:01:31]}  Qd8 {[%clk 0:01:49]} 13. Bxf6 {[%clk 0:01:28]}  exf6 {[%clk 0:01:47]} 14. h3 {[%clk 0:01:09]}  Bxf3 {[%clk 0:01:45]} 15. gxf3 {[%clk 0:01:10]}  f5 {[%clk 0:01:42]} 16. Rac1 {[%clk 0:01:04]}  Qg5+ {[%clk 0:01:40]} 17. Kh1 {[%clk 0:00:53]}  Rae8 {[%clk 0:01:26]} 18. Bb5 {[%clk 0:00:18]}  Qh5 {[%clk 0:01:24]} 19. Kg2 {[%clk 0:00:15]}  fxe4 {[%clk 0:01:24]} 20. fxe4 {[%clk 0:00:13]}  Qxe2 {[%clk 0:01:24]} 21. Bxe2 {[%clk 0:00:14]}  Rxe4 {[%clk 0:01:25]} 22. Bf3 {[%clk 0:00:14]}  Rxb4 {[%clk 0:01:25]} 23. Nxb4 {[%clk 0:00:12]}  Nxb4 {[%clk 0:01:25]} 24. a3 {[%clk 0:00:12]}  Na6 {[%clk 0:01:11]} 25. Rxd6 {[%clk 0:00:11]}  Bb2 {[%clk 0:01:04]} 26. Rc2 {[%clk 0:00:11]}  Bxa3 {[%clk 0:01:04]} 27. Rd7 {[%clk 0:00:11]}  Nc5 {[%clk 0:01:04]} 28. Rc7 {[%clk 0:00:11]}  Ne6 {[%clk 0:01:00]} 29. Rxb7 {[%clk 0:00:10]}  a5 {[%clk 0:00:55]} 30. Bd5 {[%clk 0:00:08]}  Nf4+ {[%clk 0:00:54]} 31. Kf3 {[%clk 0:00:08]}  Nxd5 {[%clk 0:00:55]} 32. Rb5 {[%clk 0:00:06]}  Nb4 {[%clk 0:00:44]} 33. Rc3 {[%clk 0:00:06]}  Bb2 {[%clk 0:00:38]} 34. Rb3 {[%clk 0:00:06]}  Bf6 {[%clk 0:00:32]} 35. Kg2 {[%clk 0:00:07]}  Nc6 {[%clk 0:00:32]} 36. Rc5 {[%clk 0:00:05]}  Nd4 {[%clk 0:00:32]} 37. Rb6 {[%clk 0:00:05]}  Be7 {[%clk 0:00:30]} 38. Rd5 {[%clk 0:00:04]}  Nf5 {[%clk 0:00:28]} 39. Rb7 {[%clk 0:00:03]}  Bb4 {[%clk 0:00:26]} 40. Ra7 {[%clk 0:00:03]}  Re8 {[%clk 0:00:25]} 41. Rdd7 {[%clk 0:00:03]}  Nd6 {[%clk 0:00:26]} 42. Ra6 {[%clk 0:00:03]}  Re6 {[%clk 0:00:25]} 43. Rd8+ {[%clk 0:00:02]}  Kg7 {[%clk 0:00:26]} 44. Rd7 {[%clk 0:00:03]}  Re2 {[%clk 0:00:26]} 45. Raxd6 {[%clk 0:00:03]}  Bxd6 {[%clk 0:00:26]} 46. Rxd6 {[%clk 0:00:04]}  a4 {[%clk 0:00:27]} 47. Ra6 {[%clk 0:00:05]}  Ra2 {[%clk 0:00:27]} 48. Kg3 {[%clk 0:00:05]}  h5 {[%clk 0:00:27]} 49. h4 {[%clk 0:00:05]}  f6 {[%clk 0:00:26]} 50. Kg2 {[%clk 0:00:06]}  Kh6 {[%clk 0:00:27]} 51. Kg3 {[%clk 0:00:06]}  Kg7 {[%clk 0:00:27]} 52. Kg2 {[%clk 0:00:06]}  g5 {[%clk 0:00:24]} 53. hxg5 {[%clk 0:00:05]}  fxg5 {[%clk 0:00:24]} 54. Kg3 {[%clk 0:00:06]}  Ra1 {[%clk 0:00:24]} 55. Kf3 {[%clk 0:00:06]}  a3 {[%clk 0:00:24]} 56. Kg2 {[%clk 0:00:06]}  Kf7 {[%clk 0:00:19]} 57. Kf3 {[%clk 0:00:07]}  Ke7 {[%clk 0:00:19]} 58. Kg3 {[%clk 0:00:07]}  Kd7 {[%clk 0:00:17]} 59. Kg2 {[%clk 0:00:04]}  a2 {[%clk 0:00:16]} 60. Kh2 {[%clk 0:00:04]}  Kc7 {[%clk 0:00:16]} 61. Kg2 {[%clk 0:00:03]}  Kb7 {[%clk 0:00:17]} 62. Ra3 {[%clk 0:00:04]}  Kb6 {[%clk 0:00:17]} 63. Ra8 {[%clk 0:00:03]}  Kb5 {[%clk 0:00:17]} 64. Rb8+ {[%clk 0:00:04]}  Kc4 {[%clk 0:00:17]} 65. Rc8+ {[%clk 0:00:04]}  Kd3 {[%clk 0:00:17]} 66. Rd8+ {[%clk 0:00:05]}  Ke4 {[%clk 0:00:17]} 67. Re8+ {[%clk 0:00:05]}  Kf5 {[%clk 0:00:18]} 68. Rf8+ {[%clk 0:00:06]}  Kg4 {[%clk 0:00:18]} 69. Ra8 {[%clk 0:00:06]}  h4 {[%clk 0:00:18]} 70. Ra4+ {[%clk 0:00:07]}  Kh5 {[%clk 0:00:19]} 71. Kh2 {[%clk 0:00:07]}  h3 {[%clk 0:00:18]} 72. Ra8 {[%clk 0:00:04]}  Kh4 {[%clk 0:00:16]} 73. Rh8+ {[%clk 0:00:03]}  Kg4 {[%clk 0:00:16]} 74. Ra8 {[%clk 0:00:04]}  Kf3 {[%clk 0:00:16]} 75. Rf8+ {[%clk 0:00:05]}  Ke2 {[%clk 0:00:15]} 76. Ra8 {[%clk 0:00:03]}  Kxf2 {[%clk 0:00:16]} 77. Rf8+ {[%clk 0:00:03]}  Ke3 {[%clk 0:00:16]} 78. Re8+ {[%clk 0:00:03]}  Kf4 {[%clk 0:00:17]} 79. Rf8+ {[%clk 0:00:04]}  Kg4 {[%clk 0:00:18]} 80. Ra8 {[%clk 0:00:04]}  Rb1 {[%clk 0:00:17]} 81. Ra4+ {[%clk 0:00:01]}  Kh5 {[%clk 0:00:16]} 82. Rxa2 {[%clk 0:00:01]}  g4 {[%clk 0:00:16]} 0-1


[Site "https://www.chess.com"]